bitfinex/quotes_ETHUSD_20251201
["timestamp","ask_amount","ask_price","bid_price","bid_amount"]
[1764595968091,0.405504,2820.2,2820.0,0.001]
[1764595968994,0.72559411,2820.1,2820.0,0.001]
[1764595969368,2.85857847,2820.1,2820.0,0.001]
[1764595971202,6.40455201,2820.1,2820.0,0.001]
[1764595971586,5.91565201,2820.1,2820.0,0.001]
[1764595971787,4.68786765,2820.1,2820.0,0.001]
[1764595975406,5.09337165,2820.1,2820.0,0.001]
[1764595976312,5.58227165,2820.1,2820.0,0.001]
[1764595977093,5.09407165,2820.1,2820.0,0.001]
[1764595977294,6.83905042,2820.1,2820.0,0.001]
[1764595977502,7.32725042,2820.1,2820.0,0.001]
[1764595977895,2.87607688,2820.1,2820.0,0.001]
[1764595978100,4.67707165,2820.1,2820.0,0.001]
[1764595978319,5.09477165,2820.1,2820.0,0.001]
[1764595978674,5.58227165,2820.1,2820.0,0.001]
[1764595978892,9.31127165,2820.1,2820.0,0.001]
[1764595979120,4.67707165,2820.1,2820.0,0.001]
[1764595979406,0.72559411,2820.1,2820.0,0.9861]
[1764595979704,3.54525993,2820.7,2820.0,0.9861]
[1764595979705,0.72559411,2820.5,2820.0,0.9861]
[1764595979906,7.09068992,2820.6,2820.1,0.6765]
[1764595979907,3.54534496,2820.6,2820.1,0.6765]
[1764595980080,3.54534496,2820.6,2820.1,1.1652]
[1764595980280,3.54509359,2820.8,2820.5,0.4964]
[1764595980607,7.5769737,2820.8,2820.5,0.4964]
[1764595980826,0.7241,2821.2,2820.5,0.4964]
[1764595980827,0.002,2821.2,2820.7,0.4964]
[1764595981108,7.09130872,2821.2,2820.8,0.9851]
[1764595981315,3.54484225,2821.0,2820.1,0.1801]
[1764595981516,0.72559411,2820.9,2820.2,0.227]
[1764595981686,0.72559411,2820.9,2820.3,0.4887]
[1764595981687,0.72479411,2820.9,2820.3,0.4887]
[1764595981882,0.90539411,2820.9,2820.3,0.44417714]
[1764595982084,0.900604,2820.8,2820.0,0.001]
[1764595982308,0.900604,2820.8,2820.0,0.228]
[1764595982589,0.4951,2820.7,2820.0,0.228]
[1764595982805,0.4951,2820.7,2820.1,0.1047]
[1764595983120,0.405504,2820.8,2820.2,0.4887]
[1764595983289,7.09043854,2820.7,2820.2,0.4887]
[1764595983480,7.84003279,2820.7,2820.1,0.1047]
[1764595983709,1.62619811,2820.6,2820.0,0.001]
[1764595984611,0.72559411,2820.6,2820.1,0.4887]
[1764595984912,3.54442642,2821.4,2820.5,0.4964]
[1764595985114,3.54400335,2821.7,2821.1,0.4964]
[1764595985317,3.54379684,2821.9,2821.1,0.4964]
[1764595985518,7.087589,2821.9,2821.1,0.9851]
[1764595985826,0.9254,2821.2,2820.5,0.4887]
[1764595986036,0.002,2821.2,2820.6,0.227]
[1764595986397,0.002,2821.2,2820.7,0.42611676]
[1764595986599,0.002,2821.2,2820.6,0.7157]
[1764595986992,0.002,2821.2,2820.7,0.4887]
[1764595987312,0.002,2821.2,2820.6,0.227]
[1764595987513,0.72559411,2821.1,2820.7,0.4887]
[1764595988223,0.72559411,2821.1,2820.6,0.227]
[1764595988608,0.4951,2821.0,2820.6,0.227]
[1764595988923,0.405504,2820.9,2820.6,0.227]
[1764595989129,0.6095,2820.7,2820.6,0.227]
[1764595989428,5.28581738,2820.7,2820.0,0.4897]
[1764595989608,1.22009411,2820.6,2820.1,0.227]
[1764595990597,0.900604,2820.5,2820.1,0.227]
[1764595991202,0.4951,2820.4,2820.1,0.227]
[1764595991934,0.4289,2820.2,2820.1,0.227]
[1764595992095,0.4289,2820.2,2820.0,0.001]
[1764595992096,0.405504,2820.1,2820.0,0.001]
[1764595992443,1.27494823,2820.1,2820.0,0.001]
[1764595992739,1.77004823,2820.1,2820.0,0.001]
[1764595993999,6.04161588,2820.1,2818.4,0.1999]
[1764595994203,6.04161588,2820.1,2818.1,0.1947]
[1764595994204,1.13109811,2818.9,2818.1,0.1947]
[1764595994430,1.13109811,2818.9,2818.2,0.4887]
[1764595994631,0.405504,2819.0,2818.2,0.4887]
[1764595994839,0.405504,2819.3,2818.2,0.4887]
[1764595995036,0.405504,2819.3,2818.3,0.42318901]
[1764595995203,0.405504,2819.3,2818.2,0.4887]
[1764595995404,0.900604,2819.3,2818.2,0.4887]
[1764595996006,0.72559411,2819.1,2818.2,4.03699907]
[1764595996240,0.72559411,2819.1,2818.2,0.4887]
[1764595996423,0.405504,2819.0,2818.1,0.6834]
[1764595996628,1.18748452,2819.0,2818.2,0.4887]
[1764595996828,0.405504,2819.0,2818.2,0.4887]
[1764595998014,0.72559411,2818.9,2818.2,4.03705602]
[1764595998420,0.72559411,2818.9,2818.8,0.4964]
[1764595998614,1.13109811,2819.3,2818.8,0.4964]
[1764595998947,0.405504,2819.1,2818.9,0.9851]
[1764595999115,0.405504,2819.2,2818.9,0.9851]
[1764595999438,0.405504,2819.2,2818.9,0.4964]
[1764595999838,0.72559411,2819.3,2819.1,0.4964]
[1764596000050,4.27264506,2819.3,2819.1,0.6963]
[1764596000209,7.81969601,2819.3,2818.5,0.4887]
[1764596000410,4.25490393,2819.3,2818.6,0.42638063]
[1764596000844,3.5464079,2819.8,2819.2,0.6963]
[1764596000845,3.54685394,2819.4,2819.2,0.6963]
[1764596001044,0.4951,2819.9,2819.2,0.6963]
[1764596001341,7.0927016,2819.8,2819.3,0.4964]
[1764596001541,0.405504,2819.7,2819.3,0.4964]
[1764596001749,2.05456964,2819.7,2819.2,0.1999]
[1764596002047,7.0932047,2819.6,2819.2,0.1999]
[1764596002253,0.405504,2819.2,2819.0,0.227]
[1764596002441,0.0049,2819.1,2818.5,0.227]
[1764596002953,0.405504,2819.3,2818.5,0.227]
[1764596003120,0.1934,2820.2,2819.2,0.6867]
[1764596003320,0.405504,2820.1,2819.3,0.7215]
[1764596003546,0.405504,2819.9,2819.3,0.7215]
[1764596004818,0.72479411,2819.7,2819.3,0.227]
[1764596005061,0.4575,2819.4,2819.1,0.001]
[1764596005261,8.71297341,2819.6,2819.1,0.001]
[1764596005262,0.0148,2819.2,2819.1,0.001]
[1764596005547,0.857504,2819.5,2819.1,0.001]
[1764596005749,0.405504,2819.7,2819.2,0.4945]
[1764596005947,3.54660235,2819.6,2819.2,0.4945]
[1764596006245,7.0932047,2819.6,2819.2,0.4945]
[1764596006749,0.72559411,2819.5,2819.1,0.001]
[1764596006951,0.72559411,2819.5,2819.1,0.1932]
[1764596007454,0.72559411,2819.5,2819.4,0.4945]
[1764596007656,0.72559411,2819.6,2819.4,0.4945]
[1764596008019,3.54672814,2819.5,2819.2,0.4945]
[1764596008220,1.13109811,2819.9,2819.5,0.4665]
[1764596008453,4.67736807,2819.9,2819.5,0.4665]
[1764596008757,8.22363803,2819.9,2819.5,0.9621]
[1764596009650,8.46736807,2819.9,2819.5,0.9621]
[1764596009837,3.79,2819.9,2819.8,0.4665]
[1764596010039,3.54572208,2820.3,2819.8,0.4665]
[1764596010241,0.72559411,2820.2,2819.8,0.4665]
[1764596010437,0.72559411,2820.2,2819.8,0.9621]
[1764596011227,0.72559411,2820.2,2819.8,0.4665]
[1764596012330,3.54597354,2820.1,2819.8,0.4665]
[1764596012727,7.09194708,2820.1,2819.8,0.4665]
[1764596013058,0.72559411,2820.1,2819.8,0.4665]
[1764596014358,4.27161698,2820.1,2819.8,0.4665]
[1764596014537,7.81763985,2820.1,2819.8,0.4665]
[1764596015262,4.27161698,2820.1,2819.8,0.4665]
[1764596015560,7.09176178,2820.2,2820.0,0.4665]
[1764596015866,3.54588089,2820.2,2820.1,0.4665]
[1764596016031,3.54588089,2820.2,2820.1,0.6644]
[1764596016764,3.54572712,2820.3,2820.1,0.6644]
[1764596017067,7.09145424,2820.3,2820.1,0.6644]
[1764596017264,3.54572712,2820.3,2820.1,0.6644]
[1764596017641,4.27132123,2820.3,2820.1,0.1979]
[1764596017846,4.27132123,2820.3,2819.9,0.4956]
[1764596017847,7.81704835,2820.3,2819.9,0.4956]
[1764596018461,0.4383,2820.0,2819.9,0.226]
[1764596018837,0.4383,2820.0,2819.2,0.4956]
[1764596018838,19.82577128,2820.0,2819.2,0.4956]
[1764596019050,0.91199411,2819.9,2819.1,0.001]
[1764596019226,0.405504,2819.8,2819.3,0.226]
[1764596019731,0.4887,2819.7,2819.3,0.226]
[1764596020334,0.4887,2819.7,2819.1,0.1989]
[1764596020564,0.4887,2819.7,2819.1,0.4249]
[1764596020773,7.0932047,2819.6,2819.1,0.4249]
[1764596020980,7.0932047,2819.6,2819.1,0.227]
[1764596021148,7.5819047,2819.6,2819.1,0.227]
[1764596021574,4.27213434,2819.7,2819.1,0.9205]
[1764596021867,4.27213434,2819.7,2819.1,1.36727764]
[1764596022052,0.591904,2820.2,2819.6,0.4665]
[1764596022273,7.09169605,2820.2,2819.7,0.4665]
[1764596022438,0.72559411,2820.1,2819.7,0.9621]
[1764596022639,0.72559411,2820.1,2819.7,0.6925]
[1764596022853,0.72559411,2820.1,2819.8,0.4956]
[1764596023170,7.81766815,2820.1,2819.8,0.4956]
[1764596023463,4.27163113,2820.1,2820.0,0.4665]
[1764596024163,3.54789328,2820.2,2820.0,0.4665]
[1764596024340,3.54789328,2820.2,2820.1,0.4665]
[1764596024538,7.09380759,2820.2,2819.7,0.7216]
[1764596024738,0.002,2820.2,2819.7,0.7216]
[1764596026237,0.002,2820.2,2819.7,0.65281922]
[1764596026436,0.002,2820.2,2819.8,0.4956]
[1764596026639,0.002,2820.2,2819.7,0.65281922]
[1764596026865,0.002,2820.2,2820.1,0.6644]
[1764596027236,0.002,2820.2,2820.1,1.16]
[1764596027779,0.0012,2820.2,2820.1,1.16]
[1764596027945,0.0012,2820.2,2820.1,1.386]
[1764596029078,0.0012,2820.2,2820.1,4.93197354]
[1764596029278,0.0012,2820.2,2820.1,5.77977987]
[1764596030047,0.0012,2820.2,2820.1,6.50537398]
[1764596030252,0.002,2821.2,2820.2,0.72559411]
[1764596030453,0.002,2821.2,2821.1,0.6644]
[1764596030661,0.002,2821.2,2821.1,0.8904]
[1764596030892,0.002,2821.2,2821.1,4.70471659]
[1764596031065,0.4289,2821.2,2820.6,0.1979]
[1764596031270,0.4289,2821.2,2820.7,0.226]
[1764596032271,0.002,2821.2,2821.1,0.4665]
[1764596032861,0.002,2821.2,2820.7,0.226]
[1764596032862,7.08943318,2821.1,2820.7,0.226]
[1764596033471,0.6546,2820.8,2820.7,0.226]
[1764596033668,0.405504,2820.7,2820.0,0.462]
[1764596033891,0.405504,2820.7,2820.1,0.4239]
[1764596035080,0.4152,2820.2,2820.1,0.226]
[1764596035280,0.72559411,2820.5,2820.1,0.226]
[1764596035591,0.4669,2820.2,2820.1,0.226]
[1764596037015,4.01274781,2820.2,2820.1,0.226]
[1764596037180,4.45984781,2820.2,2820.1,0.226]
[1764596037380,4.01274781,2820.2,2820.1,0.226]
[1764596037575,3.54522699,2820.7,2820.1,1.2869]
[1764596037777,7.09045398,2820.7,2820.2,0.4976]
[1764596038095,3.54522699,2820.7,2820.6,0.4976]
[1764596038283,3.54512826,2820.8,2820.6,0.9596]
[1764596038485,7.09025652,2820.8,2820.2,0.462]
[1764596038684,3.54512826,2820.8,2820.7,0.4976]
[1764596038887,3.54497508,2820.9,2820.2,0.462]
[1764596038888,0.72559411,2820.9,2820.2,0.462]
[1764596039507,0.72559411,2820.9,2820.8,0.4976]
[1764596039804,3.54670519,2821.2,2820.8,0.4976]
[1764596039964,3.54670519,2821.2,2820.9,0.9596]
[1764596040167,3.54670519,2821.2,2821.1,0.4976]
[1764596040368,3.54670519,2821.2,2821.1,0.6958]
[1764596040369,3.54659095,2821.2,2821.1,0.6958]
[1764596040798,7.5063819,2821.2,2820.7,0.226]
[1764596040992,3.96179095,2821.2,2820.7,0.226]
[1764596041201,3.54659095,2821.2,2820.7,0.688]
[1764596041396,10.63577285,2821.2,2820.7,0.226]
[1764596041697,0.4152,2820.8,2820.7,0.226]
[1764596042001,0.72559411,2821.1,2820.7,0.226]
[1764596042297,0.72559411,2821.1,2821.0,0.4976]
[1764596042504,0.002,2821.2,2821.0,0.9596]
[1764596042703,0.002,2821.2,2821.1,0.6958]
[1764596042869,0.002,2821.2,2821.1,1.1578]
[1764596043265,0.002,2821.2,2821.1,5.17277423]
[1764596043472,0.002,2821.5,2821.1,12.26220741]
[1764596043770,0.002,2821.5,2821.4,0.4976]
[1764596043972,0.002,2821.5,2821.4,0.7236]
[1764596044166,0.002,2821.5,2821.4,1.1856]
[1764596045500,0.002,2821.5,2821.4,4.72993968]
[1764596045709,0.002,2821.5,2821.4,5.20293365]
[1764596046084,0.002,2821.5,2821.4,5.92852776]
[1764596049481,0.002,2821.5,2821.4,1.65859397]
[1764596049682,0.002,2821.5,2821.4,1.1856]
[1764596050496,0.002,2821.5,2821.4,4.72993968]
[1764596050710,0.0012,2821.5,2821.4,4.72993968]
[1764596050892,0.0012,2821.5,2821.4,1.1856]
[1764596051098,0.0012,2821.5,2821.4,4.72993968]
[1764596051315,0.0012,2821.5,2821.4,5.55738305]
[1764596051530,0.0012,2821.5,2821.4,2.01304337]
[1764596051681,0.0012,2821.5,2820.8,0.1982]
[1764596051682,0.9083,2821.5,2820.8,0.1982]
[1764596052120,0.4101,2821.5,2820.8,0.1982]
[1764596052294,0.4101,2821.5,2820.9,0.226]
[1764596052501,0.4994,2821.5,2820.9,0.226]
[1764596052701,0.4669,2821.0,2820.9,0.226]
[1764596052897,0.872404,2821.0,2820.9,0.226]
[1764596053097,1.13109811,2820.7,2820.0,0.001]
[1764596053302,0.0045,2820.1,2820.0,0.227]
[1764596053498,1.67573789,2820.6,2820.0,0.227]
[1764596053701,0.1877,2820.9,2820.1,0.5613]
[1764596053907,1.63019811,2821.3,2820.5,0.4976]
[1764596054131,1.22469411,2821.3,2820.6,0.226]
[1764596054435,0.4991,2821.2,2820.6,0.226]
[1764596055300,3.54471659,2821.1,2820.6,0.226]
[1764596055823,7.58853318,2821.1,2820.6,0.226]
[1764596056122,7.58853318,2821.1,2820.1,0.226]
[1764596056123,0.6032,2820.7,2820.1,0.226]
[1764596056327,0.4114,2820.2,2820.1,0.226]
[1764596056492,0.4991,2820.6,2820.1,0.226]
[1764596057293,10.63641198,2820.5,2820.1,0.226]
[1764596057493,10.63641198,2820.5,2820.0,0.001]
[1764596057494,0.4155,2820.2,2820.0,0.001]
[1764596057912,0.40610661,2820.2,2820.0,0.001]
[1764596058510,0.5041,2820.1,2817.1,0.71627148]
[1764596058844,0.405504,2819.5,2818.2,0.462]
[1764596059052,0.1846,2819.6,2818.2,0.664]
[1764596059194,0.904604,2819.5,2818.2,0.664]
[1764596059398,0.72559411,2819.3,2818.3,4.01022601]
[1764596059632,0.72559411,2819.3,2818.4,0.4212226]
[1764596061518,3.54710556,2819.2,2818.5,3.54798651]
[1764596061715,7.09421112,2819.2,2818.4,3.96930844]
[1764596062119,7.09421112,2819.2,2818.4,0.001]
[1764596062120,0.4991,2819.1,2818.4,0.001]
[1764596062819,0.4003,2818.5,2818.4,0.001]
[1764596063924,0.4955,2818.8,2818.4,0.001]
[1764596064126,4.04312905,2818.8,2818.4,0.001]
[1764596064332,0.4038,2818.5,2818.4,0.001]
[1764596065421,4.44638651,2818.5,2818.4,0.001]
[1764596065616,0.8984,2818.5,2818.4,0.001]
[1764596066243,4.44638651,2818.5,2818.4,0.001]
[1764596066424,5.24581181,2818.5,2818.4,0.001]
[1764596067018,4.75121181,2818.5,2818.4,0.001]
[1764596067228,4.44638651,2818.5,2818.4,0.001]
[1764596067540,0.8984,2818.5,2818.4,0.001]
[1764596067739,0.6477,2819.0,2818.4,0.465]
[1764596067939,9.00007003,2819.6,2818.5,0.464]
[1764596067940,0.46,2819.4,2818.5,0.464]
[1764596068140,0.405504,2819.3,2818.5,0.464]
[1764596068445,0.72559411,2819.2,2818.5,0.464]
[1764596068619,2.40879901,2819.2,2818.5,0.464]
[1764596069150,1.18559411,2819.2,2818.5,0.464]
[1764596069725,0.72559411,2819.0,2818.5,4.47695239]
[1764596069920,0.72559411,2819.0,2818.5,0.929]
[1764596070518,0.46,2819.4,2818.5,4.01198409]
[1764596070721,0.1838,2819.9,2818.6,0.465]
[1764596071023,0.1838,2819.9,2819.3,0.57]
[1764596071330,0.1838,2819.9,2819.3,0.691]
[1764596071532,0.6438,2819.9,2819.3,0.227]
[1764596071830,0.72559411,2819.7,2819.3,0.227]
[1764596072032,3.5463508,2819.8,2819.3,0.227]
[1764596072232,7.0927016,2819.8,2819.3,0.227]
[1764596072730,7.5527016,2819.8,2819.3,0.227]
[1764596072944,0.46,2819.7,2818.9,0.465]
[1764596073148,0.46,2819.7,2819.4,0.227]
[1764596073747,3.5463508,2819.8,2819.4,0.227]
[1764596073947,3.5455508,2819.8,2819.4,0.227]
[1764596074548,3.5455508,2819.8,2819.7,0.464]
[1764596074549,0.72559411,2819.8,2819.7,0.464]
[1764596074750,0.72559411,2819.8,2819.4,0.227]
[1764596075522,0.4437,2819.5,2819.4,0.227]
[1764596075722,7.09295314,2819.7,2819.4,0.227]
[1764596075956,0.4998,2819.5,2819.4,0.227]
[1764596076525,7.09295314,2819.7,2819.4,0.227]
[1764596076850,7.55295314,2819.7,2819.4,0.227]
[1764596077234,0.4437,2819.5,2818.7,0.1871]
[1764596077429,0.4437,2819.5,2818.8,0.227]
[1764596077631,0.9036,2819.5,2818.8,0.227]
[1764596078151,0.72559411,2819.5,2818.9,0.465]
[1764596078339,0.72559411,2819.5,2819.0,0.77871681]
[1764596078757,0.72559411,2819.5,2819.0,1.24371681]
[1764596079248,7.09320732,2819.6,2819.0,1.24371681]
[1764596079555,0.46,2819.5,2818.8,0.227]
[1764596079757,1.18559411,2819.5,2819.4,0.001]
[1764596079953,0.72559411,2819.5,2819.4,0.001]
[1764596080126,4.71602225,2819.5,2819.4,0.001]
[1764596080323,6.04818484,2819.5,2819.4,0.001]
[1764596082030,10.19268884,2819.5,2819.4,0.001]
[1764596082855,6.6459607,2819.5,2819.4,0.001]
[1764596083059,6.6459607,2819.5,2819.1,0.001]
[1764596083060,0.405504,2819.4,2819.1,0.001]
[1764596083226,1.13569811,2819.2,2819.1,0.001]
[1764596083629,0.870104,2819.2,2819.1,0.001]
[1764596084667,0.0046,2819.2,2819.1,0.001]
[1764596085044,0.72559411,2819.4,2819.1,0.001]
[1764596086168,0.4437,2819.2,2819.1,0.001]
[1764596087032,0.9036,2819.2,2819.1,0.001]
[1764596090041,1.309104,2819.2,2819.1,0.001]
[1764596090369,10.85016814,2819.2,2819.1,0.001]
[1764596090560,12.15768082,2819.2,2819.1,0.001]
[1764596090937,0.60529987,2819.0,2818.4,0.001]
[1764596091139,0.1884,2818.5,2818.4,0.001]
[1764596091334,0.0046,2818.5,2818.4,0.001]
[1764596091569,0.405504,2818.8,2818.4,0.001]
[1764596091772,0.4437,2818.5,2818.4,0.001]
[1764596092266,0.1838,2819.0,2818.4,0.465]
[1764596092672,0.6438,2819.0,2818.4,0.001]
[1764596092873,0.4437,2818.5,2818.4,0.001]
[1764596093369,1.309104,2818.5,2818.4,0.001]
[1764596093552,1.13109811,2818.4,2817.0,0.1982]
[1764596093876,0.405504,2818.2,2817.0,0.1982]
[1764596094366,0.493,2818.1,2817.0,0.1982]
[1764596094569,1.31201681,2818.5,2817.1,0.4531]
[1764596094778,0.72,2818.5,2817.1,0.4531]
[1764596094955,0.405504,2818.6,2817.1,0.4531]
[1764596095150,0.493,2818.4,2817.1,0.4531]
[1764596095365,0.405504,2818.3,2817.0,0.1982]
[1764596095575,0.405504,2818.3,2817.0,0.6513]
[1764596095777,0.493,2818.2,2817.0,0.6513]
[1764596095972,0.493,2818.2,2817.1,0.4531]
[1764596096471,0.493,2818.3,2817.1,0.4531]
[1764596096772,0.95259411,2818.5,2817.1,0.4531]
[1764596096773,0.897704,2818.4,2817.1,0.4531]
[1764596096976,0.1950196,2818.3,2817.1,0.4531]
[1764596097271,0.227,2818.6,2817.1,0.4531]
[1764596097445,0.493,2818.3,2817.1,0.4531]
[1764596097879,1.21859411,2818.5,2817.1,0.4531]
[1764596098375,0.493,2818.4,2817.1,0.4531]
[1764596099372,0.405504,2818.3,2817.1,0.4531]
[1764596099875,1.51910641,2818.4,2817.1,0.4531]
[1764596100176,0.493,2818.8,2817.1,0.4531]
[1764596100548,0.72559411,2818.5,2817.2,0.4531]
[1764596101170,0.405504,2818.3,2817.0,0.1992]
[1764596101369,0.405504,2818.3,2817.1,0.227]
[1764596101571,0.493,2818.2,2817.1,0.227]
[1764596101777,0.405504,2817.9,2817.1,0.227]
[1764596102152,0.405504,2817.7,2817.0,0.001]
[1764596102558,0.493,2817.6,2817.0,0.001]
[1764596102758,0.4071,2817.1,2817.0,0.001]
[1764596102957,0.493,2817.6,2817.0,0.001]
[1764596103156,0.4071,2817.1,2817.0,0.001]
[1764596103774,0.493,2817.9,2817.0,0.4535]
[1764596103973,8.81547003,2818.0,2817.0,0.4535]
[1764596103974,0.72559411,2818.0,2817.1,0.1576]
[1764596104149,0.493,2817.9,2817.1,0.1576]
[1764596104349,0.493,2817.9,2817.0,0.001]
[1764596105067,0.405504,2817.8,2817.0,0.001]
[1764596105268,0.4071,2817.1,2817.0,0.001]
[1764596105667,1.304704,2817.1,2817.0,0.001]
[1764596105870,1.50773381,2817.1,2817.0,0.001]
[1764596106079,11.14869588,2817.1,2817.0,0.001]
[1764596106288,11.14869588,2817.1,2816.8,0.001]
[1764596106289,1.13109811,2817.0,2816.8,0.001]
[1764596106465,1.13109811,2817.0,2815.1,0.1601]
[1764596106466,0.09989793,2816.3,2815.1,0.1601]
[1764596106669,0.03596325,2816.4,2815.3,0.4531]
[1764596106912,0.6669,2815.2,2814.1,0.34556608]
[1764596107192,8.81547003,2815.7,2814.1,0.34556608]
[1764596107193,1.13109811,2815.6,2814.1,0.6132]
[1764596107398,0.405504,2815.0,2813.7,0.1846]
[1764596107583,0.50540193,2815.0,2813.7,0.1846]
[1764596107785,4.65639411,2815.1,2813.7,0.1846]
[1764596107786,0.405504,2814.8,2813.7,0.1846]
[1764596107989,0.405504,2814.6,2813.4,0.1846]
[1764596108293,1.13109811,2814.6,2813.4,0.1846]
[1764596108598,0.1918,2814.9,2813.4,0.1846]
[1764596108790,0.405504,2814.7,2813.5,0.4531]
[1764596109283,0.1918,2814.9,2813.6,0.229]
[1764596109800,0.1918,2814.9,2812.9,0.1846]
[1764596109801,0.99840193,2814.8,2812.9,0.1846]
[1764596110101,0.99840193,2814.8,2810.8,0.22791075]
[1764596110102,0.3998,2813.0,2812.3,0.1846]
[1764596110270,1.13109811,2813.9,2811.8,0.1855924]
[1764596110271,0.405504,2812.5,2811.8,0.1855924]
[1764596110464,0.898504,2812.5,2811.3,0.4531]
[1764596110668,1.351604,2812.5,2811.3,0.4531]
[1764596110966,0.405504,2812.3,2811.3,0.4531]
[1764596111207,0.405504,2812.3,2811.2,0.1846]
[1764596111405,0.405504,2812.6,2811.3,0.4531]
[1764596111701,0.493,2812.7,2811.3,0.4531]
[1764596111702,0.493,2813.2,2811.3,0.4531]
[1764596112009,0.493,2814.1,2812.5,0.1846]
[1764596112217,0.493,2814.1,2813.1,0.1846]
[1764596113299,0.6684,2814.0,2813.1,0.1846]
[1764596113506,0.405504,2813.9,2813.1,0.1846]
[1764596113670,0.898504,2813.9,2812.5,0.6377]
[1764596114087,0.405504,2813.7,2812.5,0.6377]
[1764596114492,0.493,2813.7,2812.5,0.1846]
[1764596114697,0.1754,2814.0,2812.6,0.4531]
[1764596114997,0.6684,2814.0,2812.6,0.4531]
[1764596115197,0.6684,2814.0,2812.7,0.23]
[1764596115499,0.405504,2813.9,2812.7,0.23]
[1764596115695,0.405504,2813.9,2812.8,0.4531]
[1764596116196,0.493,2814.5,2812.8,0.4531]
[1764596116494,0.493,2814.7,2812.8,0.4531]
[1764596116703,0.493,2814.6,2812.8,0.4531]
[1764596118002,0.493,2814.6,2812.9,0.23]
[1764596118501,0.493,2814.6,2813.0,0.4531]
[1764596118699,0.1918,2814.9,2813.0,0.4531]
[1764596118902,0.1918,2814.9,2813.1,0.1601]
[1764596119407,0.1918,2814.9,2813.2,0.4531]
[1764596119984,0.191,2814.9,2813.2,0.4531]
[1764596120670,0.493,2815.2,2813.3,0.72559411]
[1764596120871,0.493,2815.5,2813.4,0.99941641]
[1764596121075,0.6848,2816.0,2815.2,0.0927]
[1764596121685,0.493,2816.4,2815.2,0.5458]
[1764596121895,0.1918,2815.9,2815.2,0.5458]
[1764596122604,0.1918,2815.9,2815.2,0.0927]
[1764596122802,0.493,2815.8,2815.2,0.23]
[1764596123111,0.493,2815.8,2815.0,0.229]
[1764596123615,0.493,2815.8,2814.9,0.1846]
[1764596123781,0.493,2815.8,2814.9,0.4136]
[1764596123986,0.493,2815.8,2814.9,0.1846]
[1764596124384,0.493,2815.8,2814.7,0.229]
[1764596124584,0.1918,2815.9,2814.7,0.7208]
[1764596124789,0.4526,2816.5,2814.8,8.27717894]
[1764596125083,0.4526,2816.5,2814.9,0.89979789]
[1764596125394,0.4526,2816.5,2814.9,1.39159789]
[1764596125601,0.4526,2816.5,2815.0,0.4918]
[1764596126290,0.4526,2816.5,2815.1,0.229]
[1764596126484,0.4526,2816.5,2815.0,0.4918]
[1764596126685,0.405504,2816.4,2815.0,0.4918]
[1764596126879,0.405504,2816.4,2815.1,0.229]
[1764596127078,0.405504,2816.6,2815.1,0.229]
[1764596127309,0.4526,2816.4,2815.2,0.4918]
[1764596127908,0.002,2817.1,2816.3,0.1862]
[1764596128281,0.3928,2816.4,2815.7,0.1991]
[1764596128480,0.3928,2816.4,2815.8,0.229]
[1764596129002,0.3928,2816.4,2815.9,0.229]
[1764596129401,0.4882,2816.3,2815.9,0.229]
[1764596129897,0.4882,2816.3,2815.7,0.1991]
[1764596130206,0.4882,2816.3,2815.7,0.229]
[1764596130780,0.4882,2816.3,2815.6,0.229]
[1764596131312,0.3553,2816.9,2815.7,0.4936]
[1764596131609,0.681,2817.0,2815.7,0.4936]
[1764596131777,0.1918,2817.5,2815.7,0.4936]
[1764596132178,0.4892,2817.2,2815.8,0.229]
[1764596132408,0.1918,2817.5,2815.8,0.229]
[1764596132610,0.4892,2817.0,2815.9,0.4936]
[1764596132794,0.4892,2817.0,2815.9,0.7226]
[1764596133113,0.1896,2816.9,2816.0,0.229]
[1764596133280,0.44688,2816.8,2816.0,0.229]
[1764596133485,0.44688,2816.8,2816.1,0.229]
[1764596133687,0.44688,2816.8,2816.0,0.4936]
[1764596133883,0.1896,2816.9,2816.2,0.229]
[1764596135611,0.72559411,2817.3,2816.3,0.4936]
[1764596136022,0.72559411,2817.3,2816.2,0.229]
[1764596136195,0.4912,2817.1,2816.3,0.229]
[1764596136393,0.002,2817.1,2816.3,0.229]
[1764596136626,0.002,2817.1,2817.0,0.4621]
[1764596136991,0.002,2817.1,2817.0,0.9557]
[1764596137186,0.002,2817.1,2817.0,1.1847]
[1764596137497,0.002,2817.1,2817.0,0.4621]
[1764596137699,0.002,2817.1,2817.0,0.6911]
[1764596137878,0.002,2817.1,2817.0,1.1847]
[1764596139517,0.002,2817.1,2817.0,0.9557]
[1764596139761,0.002,2817.1,2817.0,0.4621]
[1764596139894,0.002,2817.1,2817.0,1.1847]
[1764596140918,0.002,2817.1,2817.0,0.9557]
[1764596141096,0.002,2817.1,2817.0,1.1847]
[1764596141608,0.002,2817.1,2817.0,0.6911]
[1764596141806,0.002,2817.1,2817.0,1.1847]
[1764596142486,0.002,2817.1,2817.0,0.9557]
[1764596142691,0.002,2817.1,2817.0,1.1847]
[1764596142921,0.0012,2817.1,2817.0,1.1847]
[1764596143120,0.0012,2817.1,2816.4,0.4936]
[1764596143295,0.0012,2817.1,2816.5,0.7226]
[1764596143716,0.0012,2817.1,2816.5,0.4936]